bitfinex-derivatives/quotes_SOLF0:USTF0_20250818
["timestamp","ask_amount","ask_price","bid_price","bid_amount"]
[1755516446323,348.64,180.75,180.74,2.99]
[1755516446524,352.7167081,180.75,180.72,19.36609094]
[1755516446716,348.64,180.75,180.73,2.99]
[1755516447322,348.64,180.75,180.74,2.99]
[1755516447617,352.71702008,180.75,180.74,2.99]
[1755516460232,218.07702008,180.75,180.74,2.99]
[1755516460534,352.67702008,180.75,180.74,2.99]
[1755516461534,352.67702008,180.75,180.74,5.02609094]
[1755516463933,218.07702008,180.75,180.74,5.02609094]
[1755516464237,214.0,180.81,180.75,2.99]
[1755516464428,138.6584306,180.8,180.79,5.02609094]
[1755516465132,134.58,180.8,180.79,5.02609094]
[1755516470836,134.58,180.8,180.79,2.99]
[1755516476840,134.58,180.8,180.78,2.03609094]
[1755516477144,134.58,180.8,180.79,2.9]
[1755516480146,134.58,180.8,180.78,4.93609094]
[1755516480544,134.58,180.8,180.78,2.03609094]
[1755516480741,134.58,180.8,180.79,2.9]
[1755516481736,134.58,180.8,180.79,4.93609094]
[1755516482745,210.82,180.81,180.79,2.03609094]
[1755516482946,210.82,180.81,180.8,2.9]
[1755516483942,210.82,180.81,180.8,8.4274]
[1755516486153,210.82,180.81,180.8,2.9]
[1755516486655,3.14,180.82,180.8,4.93609094]
[1755516486957,3.14,180.82,180.81,4.93609094]
[1755516488051,3.14,180.82,180.81,2.9]
[1755516488248,137.64,180.83,180.81,4.93609094]
[1755516488554,137.64,180.83,180.82,2.9]
[1755516489351,3.14,180.82,180.81,2.03609094]
[1755516489547,3.14,180.82,180.8,2.9]
[1755516489746,134.48,180.81,180.8,2.9]
[1755516489953,137.62,180.81,180.8,2.9]
[1755516507374,134.48,180.81,180.8,2.9]
[1755516507969,137.66,180.81,180.8,2.9]
[1755516508166,138.54441171,180.81,180.8,2.9]
[1755516511873,141.72441171,180.81,180.8,2.9]
[1755516514076,138.54441171,180.81,180.79,4.98609094]
[1755516514276,3.18,180.8,180.79,4.98609094]
[1755516514977,137.66,180.81,180.79,4.98609094]
[1755516515177,137.66,180.81,180.8,2.95]
[1755516515476,141.7260093,180.81,180.8,2.95]
[1755516517280,138.5460093,180.81,180.8,2.95]
[1755516518579,141.7260093,180.81,180.8,2.95]
[1755516522875,141.7260093,180.81,180.79,2.03609094]
[1755516523082,4.06645508,180.8,180.77,4.98609094]
[1755516523289,3.18,180.78,180.77,2.03609094]
[1755516523672,3.18,180.78,180.76,2.03609094]
[1755516523875,3.18,180.78,180.77,2.95]
[1755516525085,3.18,180.78,180.75,2.03609094]
[1755516525276,137.6,180.77,180.76,2.95]
[1755516527787,210.82,180.78,180.76,2.95]
[1755516527983,345.24,180.78,180.76,2.95]
[1755516529295,3.18,180.77,180.76,2.95]
[1755516530184,345.24,180.78,180.76,2.95]
[1755516530384,348.42,180.78,180.76,2.95]
[1755516532190,345.24,180.78,180.76,2.95]
[1755516532891,348.25,180.78,180.76,2.95]
[1755516533092,3.01,180.77,180.76,2.95]
[1755516534893,348.25,180.78,180.76,2.95]
[1755516535696,134.4,180.77,180.76,2.95]
[1755516540504,210.82,180.78,180.76,2.95]
[1755516540689,210.82,180.78,180.77,5.09609094]
[1755516540895,110.6087907,180.83,180.78,3.06]
[1755516541095,110.6087907,180.83,180.82,3.06]
[1755516541395,134.38,180.84,180.82,3.06]
[1755516541694,134.38,180.85,180.82,3.06]
[1755516542100,134.38,180.85,180.81,2.03609094]
[1755516542501,3.01,180.83,180.82,3.06]
[1755516548411,134.38,180.85,180.82,3.06]
[1755516548610,137.39,180.85,180.82,3.06]
[1755516549612,3.01,180.84,180.82,3.06]
[1755516550407,137.39,180.85,180.82,3.06]
[1755516550613,134.38,180.85,180.82,3.06]
[1755516551106,137.39,180.85,180.82,3.06]
[1755516556713,3.01,180.84,180.82,3.06]
[1755516562217,137.25342716,180.87,180.82,3.06]
[1755516562416,7.01274726,180.86,180.82,3.06]
[1755516562617,2.95,180.85,180.82,3.06]
[1755516564118,137.25342716,180.87,180.82,3.06]
[1755516564418,2.95,180.84,180.82,3.06]
[1755516564813,2.95,180.86,180.82,3.06]
[1755516567421,2.95,180.85,180.82,3.06]
[1755516570828,134.32,180.87,180.82,2.93342716]
[1755516571128,137.27,180.87,180.83,2.94]
[1755516571631,2.95,180.86,180.83,2.94]
[1755516576724,134.32,180.87,180.83,2.94]
[1755516576923,2.95,180.85,180.83,2.94]
[1755516578237,2.95,180.86,180.83,2.94]
[1755516578432,2.95,180.84,180.83,2.94]
[1755516578832,2.95,180.84,180.81,2.94]
[1755516580437,2.95,180.83,180.81,2.94]
[1755516594648,2.95,180.83,180.81,2.93]
[1755516595351,137.25342716,180.87,180.79,2.93342716]
[1755516595352,134.32,180.87,180.82,2.93]
[1755516595552,3.14,180.85,180.82,2.93]
[1755516595850,7.2093996,180.84,180.82,2.93]
[1755516596052,4.0693996,180.83,180.82,2.93]
[1755516597748,3.14,180.85,180.82,2.93]
[1755516597954,7.20966112,180.84,180.82,2.93]
[1755516598153,3.14,180.84,180.82,2.93]
[1755516598650,3.14,180.83,180.82,2.93]
[1755516598842,134.22,180.87,180.82,2.93]
[1755516598843,3.14,180.86,180.82,2.93]
[1755516599047,7.2096628,180.85,180.82,2.93]
[1755516599246,4.0696628,180.84,180.82,2.93]
[1755516599443,3.14,180.85,180.82,2.93]
[1755516599648,4.06966453,180.84,180.83,2.93]
[1755516600452,7.20966453,180.84,180.83,2.93]
[1755516602457,4.06966453,180.84,180.83,2.93]
[1755516602753,134.22,180.88,180.84,2.93]
[1755516602952,3.14,180.89,180.86,2.93]
[1755516603154,4.07064916,180.88,180.86,2.93]
[1755516603354,3.14,180.88,180.86,2.93]
[1755516604255,3.14,180.88,180.87,2.93]
[1755516604456,7.20697339,180.88,180.87,2.93]
[1755516604654,3.14,180.87,180.85,5.86342716]
[1755516604856,3.14,180.87,180.85,2.93]
[1755516605159,3.14,180.87,180.86,2.93]
[1755516609262,2.93342716,180.91,180.86,2.93]
[1755516609463,3.14,180.88,180.87,2.93]
[1755516609665,7.2053536,180.88,180.87,2.93]
[1755516610759,4.0653536,180.88,180.87,2.93]
[1755516611266,3.14,180.9,180.87,2.93]
[1755516611462,4.06489761,180.89,180.87,2.93]
[1755516611762,3.14,180.89,180.87,2.93]
[1755516612061,3.14,180.88,180.87,2.93]
[1755516618963,3.14,180.89,180.87,2.93]
[1755516619160,3.14,180.9,180.87,2.93]
[1755516619359,4.05673582,180.89,180.87,2.93]
[1755516619560,3.14,180.9,180.87,2.93]
[1755516619867,4.05702388,180.89,180.87,2.93]
[1755516620063,3.14,180.9,180.87,2.93]
[1755516620262,4.05702471,180.89,180.87,2.93]
[1755516620464,3.14,180.9,180.87,2.93]
[1755516620763,4.05681318,180.89,180.87,2.93]
[1755516620963,3.14,180.9,180.87,2.93]
[1755516621165,4.05681318,180.89,180.87,2.93]
[1755516621370,3.14,180.89,180.87,2.93]
[1755516622870,2.93342716,180.91,180.87,2.93]
[1755516623068,3.12,180.89,180.87,2.93]
[1755516623270,3.12,180.89,180.88,2.96]
[1755516623470,7.1762974,180.89,180.88,2.96]
[1755516626475,4.0562974,180.89,180.83,2.93342716]
[1755516626769,7.17634519,180.88,180.84,2.96]
[1755516626963,3.12,180.88,180.84,2.96]
[1755516629373,3.12,180.87,180.84,2.96]
[1755516630774,3.12,180.86,180.82,2.96]
[1755516633176,4.05701979,180.85,180.82,2.96]
[1755516633474,3.12,180.85,180.82,2.96]
[1755516633970,3.12,180.85,180.77,2.93342716]
[1755516634182,3.12,180.83,180.78,2.96]
[1755516634779,4.05575586,180.82,180.78,2.96]
[1755516634980,3.12,180.83,180.78,2.96]
[1755516635283,3.12,180.81,180.78,2.96]
[1755516635582,3.12,180.81,180.8,2.96]
[1755516637185,3.12,180.81,180.75,2.93342716]
[1755516637386,3.12,180.82,180.76,2.96]
[1755516647597,3.12,180.8,180.76,2.96]
[1755516649395,3.12,180.79,180.76,2.96]
[1755516650993,2.93342716,180.81,180.76,2.96]
[1755516651191,3.12,180.8,180.76,2.96]
[1755516652692,3.09,180.79,180.76,2.96]
[1755516652998,3.09,180.78,180.76,2.96]
[1755516653399,3.09,180.77,180.76,2.96]
[1755516654799,3.09,180.77,180.63,10.25819408]
[1755516654800,3.09,180.76,180.75,2.96]
[1755516655303,3.09,180.76,180.7,2.96]
[1755516656604,2.93342716,180.75,180.7,2.96]
[1755516656801,3.09,180.74,180.7,2.96]
[1755516656999,3.09,180.75,180.7,2.96]
[1755516657202,3.09,180.76,180.7,2.96]
[1755516657609,63.02342716,180.78,180.72,2.96]
[1755516658000,3.09,180.77,180.72,2.96]
[1755516660408,3.09,180.76,180.72,2.96]
[1755516660705,59.93342716,180.78,180.72,2.96]
[1755516660915,137.35,180.8,180.75,2.96]
[1755516661511,3.09,180.79,180.75,2.96]
[1755516661910,3.09,180.78,180.73,2.96]
[1755516662404,3.09,180.76,180.73,2.96]
[1755516664913,3.09,180.74,180.69,2.96]
[1755516665107,3.09,180.72,180.69,2.96]
[1755516665304,2.93342716,180.73,180.69,2.96]
[1755516665305,3.09,180.71,180.69,2.96]
[1755516665509,2.93342716,180.73,180.69,2.96]
[1755516665812,3.09,180.72,180.69,2.96]
[1755516666013,2.93342716,180.73,180.69,2.96]
[1755516666216,3.09,180.71,180.69,2.96]
[1755516667416,3.09,180.72,180.69,2.96]
[1755516667615,2.93342716,180.73,180.68,5.5309]
[1755516667822,3.09,180.74,180.69,2.96]
[1755516668018,6.02342716,180.75,180.69,2.96]
[1755516668522,2.93342716,180.75,180.69,2.96]
[1755516668721,3.09,180.74,180.69,2.96]
[1755516670417,2.93342716,180.75,180.69,2.96]
[1755516670418,3.09,180.73,180.69,2.96]
[1755516671918,3.09,180.72,180.69,2.96]
[1755516672421,3.09,180.73,180.69,2.96]
[1755516673023,3.09,180.72,180.69,2.96]
[1755516675423,3.09,180.72,180.65,2.96]
[1755516675424,2.93342716,180.72,180.65,2.96]
[1755516675623,3.09,180.71,180.65,2.96]
[1755516676119,3.09,180.69,180.62,2.93342716]
[1755516676424,3.09,180.67,180.63,2.96]
[1755516676625,3.12502222,180.67,180.63,2.96]
[1755516678323,3.12502222,180.67,180.64,2.96]
[1755516678525,3.09,180.66,180.61,8.46652716]
[1755516679128,3.09,180.66,180.62,2.96]
[1755516680919,0.03502222,180.67,180.61,2.93342716]
[1755516681112,3.09,180.66,180.62,2.96]
[1755516681314,3.09,180.65,180.62,2.96]
[1755516682320,0.03502222,180.67,180.61,3.02]
[1755516682321,5.90342716,180.66,180.61,3.02]
[1755516682524,2.97,180.65,180.61,3.02]
[1755516683323,2.93342716,180.64,180.61,3.02]
[1755516683628,2.97,180.63,180.61,3.02]
[1755516684928,2.97,180.62,180.57,147.95469624]
[1755516685529,2.97,180.62,180.58,3.02]
[1755516686036,3.00679239,180.62,180.58,3.02]
[1755516686332,3.00679239,180.62,180.59,3.02]
[1755516687935,0.03679239,180.62,180.59,3.02]
[1755516689134,3.00679239,180.62,180.59,3.02]
[1755516690536,3.00679239,180.62,180.6,3.02]
[1755516690926,3.00679239,180.62,180.61,3.02]
[1755516691327,2.97,180.61,180.57,145.44039624]
[1755516691528,2.97,180.61,180.58,3.02]
[1755516692033,2.97,180.61,180.59,3.02]
[1755516693233,2.97,180.61,180.6,3.02]
[1755516695025,3.00679239,180.62,180.6,3.02]
[1755516695426,0.03679239,180.62,180.6,3.02]
[1755516696839,3.00679239,180.62,180.6,3.02]
[1755516697241,2.97,180.61,180.6,3.02]
[1755516698643,2.97,180.61,180.59,3.02]
[1755516699631,2.97,180.6,180.58,3.02]
[1755516699831,2.97,180.59,180.53,2.93342716]
[1755516700037,2.97,180.59,180.53,8.46882716]
[1755516700232,2.97,180.62,180.55,2.93342716]
[1755516700432,0.03591147,180.58,180.56,3.02]
[1755516701631,0.03591147,180.58,180.51,134.54]
[1755516701838,2.97,180.57,180.56,3.02]
[1755516702241,3.00591147,180.58,180.56,3.02]
[1755516702838,5.5344,180.57,180.56,3.02]
[1755516703343,5.5344,180.57,180.51,3.02]
[1755516703344,5.90342716,180.57,180.51,3.02]
[1755516703642,2.97,180.55,180.51,3.02]
[1755516705137,2.97,180.57,180.51,3.02]
[1755516707444,2.97,180.57,180.53,3.02]
[1755516707749,2.97,180.56,180.53,3.02]
[1755516708346,2.97,180.57,180.54,3.02]
[1755516708746,2.97,180.57,180.55,3.02]
[1755516709252,2.97,180.56,180.55,3.02]
[1755516710754,8.5047,180.56,180.55,3.02]
[1755516711356,2.97,180.56,180.53,3.02]
[1755516711558,2.97,180.56,180.54,3.02]
[1755516711957,8.5051,180.55,180.54,3.02]
[1755516713564,5.5357,180.53,180.52,0.03594874]
[1755516713761,8.7057,180.53,180.52,3.10594874]
[1755516714161,5.5357,180.53,180.52,3.10594874]
[1755516714560,0.03911056,180.54,180.52,3.10594874]
[1755516715768,0.03911056,180.54,180.53,3.07]
[1755516721069,5.57451056,180.54,180.53,3.07]
[1755516721271,8.74451056,180.54,180.53,3.07]
[1755516721470,5.57451056,180.54,180.53,3.07]
[1755516722565,8.74451056,180.54,180.53,3.07]
[1755516726880,5.5357,180.53,180.52,3.10594874]
[1755516727079,8.7057,180.53,180.52,3.10594874]
[1755516727977,5.5357,180.53,180.52,3.10594874]
[1755516728877,8.7057,180.53,180.52,3.10594874]
[1755516732681,8.7057,180.53,180.52,4.874e-05]
[1755516732881,8.7057,180.53,180.5,0.14]
[1755516732882,8.7063,180.51,180.5,0.14]
[1755516733076,8.7063,180.51,180.5,3.21]
[1755516734976,8.7063,180.51,180.5,0.14]
[1755516735286,8.7063,180.51,180.5,3.21]
[1755516736278,5.5363,180.51,180.5,3.21]
[1755516736582,135.56,180.53,180.5,3.21]
[1755516736779,0.03911056,180.54,180.5,3.21]
[1755516736975,3.17,180.53,180.5,3.21]
[1755516737586,3.17,180.52,180.51,3.07]
[1755516737889,3.17,180.52,180.5,0.14]
[1755516738086,3.17,180.52,180.5,3.21]
[1755516738583,3.17,180.51,180.5,0.14]
[1755516739180,3.17,180.51,180.5,3.21]
[1755516742188,8.7063,180.51,180.5,3.21]
[1755516744189,5.5363,180.51,180.5,3.21]
[1755516745292,8.4663,180.51,180.5,3.21]
[1755516745888,8.4663,180.51,180.5,0.14]
[1755516746288,8.4663,180.51,180.5,3.16]
[1755516747691,8.4663,180.51,180.5,0.14]
[1755516748288,8.4663,180.51,180.5,3.16]
[1755516750693,5.5363,180.51,180.5,3.16]
[1755516751792,8.4663,180.51,180.5,3.16]
[1755516752989,5.5363,180.51,180.5,3.16]
[1755516753188,8.4663,180.51,180.5,3.16]
[1755516754487,8.4663,180.51,180.5,0.14]
[1755516755196,144.4463,180.51,180.5,0.14]
[1755516757684,148.51496273,180.51,180.5,0.14]
[1755516758090,2.93,180.5,180.44,3.02]
[1755516758289,7.52869916,180.48,180.44,3.02]
[1755516758497,2.93,180.46,180.44,3.02]
[1755516760392,2.93,180.45,180.44,3.02]
[1755516760590,2.93,180.45,180.43,26.82]
[1755516760791,2.93,180.44,180.43,26.82]
[1755516761091,4.59869916,180.45,180.44,3.02]
[1755516761396,7.52869916,180.45,180.44,3.02]
[1755516761605,2.93,180.44,180.43,26.82]
[1755516761793,6.99071664,180.44,180.43,26.82]
[1755516761993,2.93,180.44,180.43,29.84]
[1755516762194,2.93,180.44,180.43,26.82]
[1755516762692,2.93,180.44,180.43,29.84]
[1755516764198,4.64000188,180.48,180.44,3.02]
[1755516764393,4.05706704,180.47,180.44,3.02]
[1755516764698,0.04130272,180.48,180.44,3.02]
[1755516764898,136.60130272,180.48,180.44,3.02]
[1755516765588,2.93,180.47,180.44,3.02]
[1755516765792,2.93,180.46,180.45,3.02]
[1755516766397,136.60130272,180.48,180.45,3.02]
[1755516766901,2.93,180.47,180.44,3.02]
[1755516767694,136.60130272,180.48,180.44,3.02]
[1755516767899,139.53130272,180.48,180.44,3.02]
[1755516770702,136.60130272,180.48,180.44,3.02]
[1755516771105,139.53130272,180.48,180.44,3.02]
[1755516772006,0.04130272,180.48,180.45,3.02]
[1755516774204,3.09130272,180.48,180.45,3.02]
[1755516774907,0.04130272,180.48,180.45,3.02]
[1755516777318,136.72,180.53,180.47,3.02]
[1755516777526,139.81,180.55,180.47,3.02]
[1755516777715,136.76,180.55,180.47,3.02]
[1755516778016,136.76,180.55,180.49,5.5367]
[1755516778320,136.76,180.55,180.5,3.02]
[1755516778922,3.09,180.54,180.5,3.02]
[1755516779110,4.07098637,180.53,180.44,3.02]
[1755516779313,3.09,180.54,180.46,3.02]
[1755516779519,3.09,180.52,180.46,3.02]
[1755516780113,4.59869916,180.52,180.46,3.02]
[1755516780318,7.15981242,180.51,180.46,3.02]
[1755516780512,3.09,180.51,180.46,3.02]
[1755516780714,136.88,180.51,180.46,3.02]
[1755516780919,141.45869916,180.55,180.46,3.02]
[1755516781120,4.0703185,180.54,180.46,3.02]
[1755516781321,105.55399482,180.58,180.51,3.02]
[1755516781722,105.55399482,180.58,180.51,8.5561]
[1755516781922,3.09,180.57,180.48,3.02]
[1755516782425,3.09,180.57,180.5,3.02]
[1755516783119,3.09,180.57,180.51,3.02]
[1755516785219,5.5358,180.52,180.51,3.02]
[1755516786331,136.92,180.55,180.47,3.02]
[1755516786530,7.68869916,180.53,180.47,3.02]
[1755516786733,3.09,180.52,180.44,5.5382]
[1755516787025,3.09,180.52,180.48,3.02]
[1755516787223,3.09,180.52,180.49,3.02]
[1755516787928,3.09,180.51,180.44,3.02]
[1755516788128,3.09,180.51,180.46,3.02]
[1755516789432,4.59869916,180.53,180.43,26.82]
[1755516789433,3.09,180.52,180.44,3.02]
[1755516789836,3.09,180.5,180.44,3.02]
[1755516790133,3.09,180.49,180.44,3.02]
[1755516790336,3.09,180.48,180.47,3.02]
[1755516791729,3.09,180.47,180.46,3.06093941]
[1755516791935,3.09,180.47,180.46,0.04093941]
[1755516792738,7.68869916,180.47,180.46,0.04093941]
[1755516793439,11.75275026,180.47,180.46,0.04093941]
[1755516795237,7.1540511,180.47,180.46,0.04093941]
[1755516796741,3.09,180.46,180.41,3.02]
[1755516796936,3.09,180.46,180.35,4.59869916]
[1755516796937,3.09,180.44,180.38,3.02]
[1755516797939,0.03832538,180.43,180.38,3.02]
[1755516798841,3.12832538,180.43,180.38,3.02]
[1755516802740,0.03832538,180.43,180.38,3.02]
[1755516803545,3.12832538,180.43,180.38,3.02]
[1755516804042,0.03832538,180.43,180.38,3.02]
[1755516805243,0.03832538,180.43,180.39,3.05]
[1755516806742,3.12832538,180.43,180.39,3.05]
[1755516808046,5.5394,180.41,180.39,3.05]
[1755516808343,3.12832538,180.43,180.39,3.05]
[1755516809142,0.03832538,180.43,180.39,3.05]
[1755516809344,3.09,180.42,180.39,3.05]
[1755516809838,3.12832538,180.43,180.39,3.05]
[1755516810045,0.03832538,180.43,180.39,3.05]
[1755516815149,3.09,180.5,180.39,4.59869916]
[1755516815443,139.91,180.52,180.43,3.05]
[1755516815643,136.78,180.52,180.46,3.05]
[1755516816347,3.13,180.51,180.46,3.05]
[1755516816748,136.78,180.52,180.46,3.05]
[1755516816945,3.13,180.51,180.42,4.59869916]
[1755516817144,3.13,180.51,180.43,3.05]
[1755516818548,0.03966627,180.49,180.45,0.03513657]
[1755516818747,3.13,180.47,180.46,3.05]
[1755516823952,3.13,180.48,180.46,3.05]
[1755516824249,3.16966627,180.49,180.46,3.05]
[1755516824451,0.03966627,180.49,180.46,3.05]
[1755516826356,0.03966627,180.49,180.45,0.03513657]
[1755516826656,3.13,180.48,180.47,3.05]
[1755516827056,3.13,180.47,180.46,3.05]
[1755516827645,3.16966627,180.49,180.46,3.05]
[1755516827849,0.03966627,180.49,180.46,3.05]
[1755516828257,0.03966627,180.49,180.47,3.05]
[1755516829356,3.16966627,180.49,180.46,3.05]
[1755516829556,3.13,180.48,180.47,3.05]
[1755516830256,0.03966627,180.49,180.47,3.05]
[1755516830450,3.16966627,180.49,180.48,3.05]
[1755516832454,3.16966627,180.49,180.45,2.92513657]
[1755516832665,3.02,180.48,180.45,2.92513657]
[1755516832958,3.02,180.47,180.46,2.89]
[1755516835461,3.05966627,180.49,180.46,2.89]
[1755516838362,0.03966627,180.49,180.46,2.89]
[1755516839557,3.05966627,180.49,180.46,2.89]
[1755516840161,0.03966627,180.49,180.46,2.89]
[1755516840366,193.80253945,180.54,180.46,2.89]
[1755516840562,193.80253945,180.54,180.48,2.89]
[1755516840861,193.80253945,180.54,180.5,2.89]
[1755516841658,193.80253945,180.54,180.51,2.89]
[1755516842555,193.80253945,180.54,180.51,5.536]
[1755516842756,193.80253945,180.54,180.52,2.89]
[1755516846860,196.82253945,180.54,180.53,2.89]
[1755516847161,333.40253945,180.54,180.53,2.89]
[1755516848758,333.40253945,180.54,180.5,0.03905037]
[1755516848759,3.02,180.53,180.5,2.92905037]
[1755516848965,3.02,180.53,180.5,0.03905037]
[1755516849853,3.02,180.51,180.5,0.03905037]
[1755516850055,139.56,180.51,180.5,0.03905037]
[1755516854367,139.56,180.51,180.5,2.92905037]
[1755516855169,139.56,180.51,180.5,0.03905037]
[1755516855369,143.6318908,180.51,180.5,0.03905037]
[1755516860971,143.6318908,180.51,180.5,2.92905037]
[1755516861269,140.6118908,180.51,180.5,2.92905037]
[1755516861474,136.54,180.51,180.5,2.92905037]
[1755516861973,140.61954104,180.51,180.5,2.92905037]
[1755516862172,136.54,180.51,180.5,2.92905037]
[1755516862973,139.67,180.51,180.5,2.92905037]
[1755516864575,139.67,180.51,180.5,0.03905037]
[1755516864776,143.75088144,180.51,180.5,0.03905037]
[1755516864976,143.75088144,180.51,180.5,2.94905037]
[1755516865375,140.62088144,180.51,180.5,2.94905037]
[1755516865770,136.54,180.51,180.5,2.94905037]
[1755516865970,143.75969842,180.51,180.5,2.94905037]
[1755516866166,57.0,180.53,180.5,2.94905037]
[1755516866372,3.13,180.57,180.5,2.94905037]
[1755516866683,141.11045236,180.56,180.5,2.94905037]
[1755516866874,4.09045236,180.55,180.5,2.94905037]
[1755516867179,137.06,180.54,180.5,2.94905037]
[1755516872574,140.19,180.54,180.5,2.94905037]
[1755516872773,3.13,180.51,180.5,2.94905037]
[1755516872980,140.09,180.51,180.5,2.94905037]
[1755516874385,140.09,180.51,180.5,0.03905037]
[1755516875684,136.96,180.51,180.5,0.03905037]
[1755516875877,144.17884653,180.51,180.5,0.03905037]
[1755516879188,144.17884653,180.51,180.5,2.94905037]
[1755516879987,144.17884653,180.51,180.5,0.03905037]
[1755516880691,144.17884653,180.51,180.5,2.94905037]
[1755516880988,144.17884653,180.51,180.5,0.03905037]
[1755516883087,144.17884653,180.51,180.5,2.94905037]
[1755516887185,144.17884653,180.51,180.5,0.03905037]
[1755516887993,144.17884653,180.51,180.5,2.94905037]
[1755516891786,144.17884653,180.51,180.5,0.03905037]
[1755516892490,4.59869916,180.5,180.48,11.86]
[1755516892695,143.74884653,180.49,180.48,14.91]
[1755516893990,140.76884653,180.49,180.48,14.91]
[1755516897995,143.74884653,180.49,180.48,11.86]
[1755516898200,140.76884653,180.49,180.48,14.91]
[1755516899395,143.74884653,180.49,180.48,14.91]
[1755516900200,143.74884653,180.49,180.48,11.86]
[1755516900700,145.79834265,180.49,180.32,3.05]
[1755516900902,4.59869916,180.45,180.32,3.05]
[1755516901202,10.25002996,180.48,180.32,3.05]
[1755516901203,4.59869916,180.42,180.33,3.05]
[1755516901402,140.54884653,180.41,180.4,3.05]
[1755516902300,136.46,180.41,180.4,3.05]
[1755516910308,0.04108365,180.42,180.4,3.05]
[1755516911718,136.26,180.47,180.4,8.5893]
[1755516911916,4.09307117,180.46,180.41,3.05]
[1755516912117,4.09307117,180.45,180.41,3.05]
[1755516912318,136.26,180.47,180.41,3.05]
[1755516912514,4.09367622,180.46,180.38,3.05]
[1755516912822,4.09367622,180.45,180.38,3.05]
[1755516913121,4.09367622,180.44,180.43,3.05]
[1755516914913,0.04070517,180.45,180.43,3.05]
[1755516915416,0.04070517,180.45,180.43,8.5884]
[1755516915613,344.45038616,180.5,180.44,3.05]
[1755516915814,4.09215717,180.49,180.44,3.05]
[1755516916122,208.07038616,180.5,180.44,3.05]
[1755516916123,4.09215717,180.48,180.44,3.05]
[1755516916322,208.07038616,180.5,180.44,3.05]
[1755516916523,136.36,180.53,180.44,3.05]
[1755516916723,4.69157727,180.52,180.44,3.05]
[1755516916924,136.36,180.53,180.44,3.05]
[1755516917221,136.36,180.53,180.46,4.59869916]
[1755516917416,2.98,180.54,180.47,3.05]
[1755516917620,7.67333274,180.53,180.47,3.05]
[1755516917924,4.69333274,180.52,180.48,3.05]
[1755516918123,2.98,180.55,180.48,3.08922289]
[1755516918323,4.69402463,180.54,180.48,3.08922289]
[1755516918525,2.98,180.54,180.48,3.08922289]
[1755516922025,2.98,180.54,180.49,5.5366]
[1755516922227,2.98,180.54,180.5,2.87]
[1755516922731,57.0,180.55,180.51,2.87]
[1755516923031,59.87,180.55,180.51,2.87]
[1755516923624,2.87,180.54,180.51,2.87]
[1755516924425,57.0,180.55,180.51,2.87]
[1755516924730,59.87,180.55,180.51,2.87]
[1755516925030,57.0,180.55,180.51,2.87]